Cogmind - Beta 15 @@@ ROGUE MODE // 2025.06.05 @ 19:21:00 Player: Raikiriu Result: Destroyed by 0X-JLC(R) with Subdweller Laser Performance ------------- Evolutions (0) 0 Regions Visited (2) 400 Robots Destroyed (7) 35 Value Destroyed (133) 133 Prototype IDs (0) 0 Alien Tech Used (0) 0 Bonus (0) 0 TOTAL SCORE: 568 Bonus ------- None Cogmind --------- Core Integrity 0/250 Matter 297/300 Energy 100/100 System Corruption 0% Temperature Cool (6) Movement Walking (120) Location -10/Subcaves Parts ------- > --- POWER (1) -------- (None) > --- PROPULSION (2) --- Aluminum Leg > --- UTILITY (2) ------ Small Storage Unit > --- WEAPON (2) ------- Assault Rifle > --- INVENTORY (8) ---- Light Treads Aluminum Leg Aluminum Leg Aluminum Leg Wheel Wheel Peak State ------------ > --- POWER ------------ Ion Engine > --- PROPULSION ------- Light Treads Light Treads > --- UTILITY ---------- Small Storage Unit > --- WEAPON ----------- Medium Laser Light Assault Rifle > --- INVENTORY -------- Ion Engine Aluminum Leg Aluminum Leg Assault Rifle [Rating: 6] Favorites ----------- Power Ion Engine Engine Ion Engine Propulsion Light Treads Treads Light Treads Leg Aluminum Leg Utility Small Storage Unit Storage Small Storage Unit Weapon Assault Rifle Energy Gun Medium Laser Ballistic Gun Assault Rifle Build | -11 -10 -10 ------- Run | Yrd Mat Sub Slots Evolved . | . . . Power . | . . . Propulsion . | . . . Utility . | . . . Weapon . | . . . Parts Attached 11 | 6 5 . Power 2 | 1 1 . Engine 2 | 1 1 . Core . | . . . Reactor . | . . . Propulsion 4 | 2 2 . Treads 2 | 2 . . Leg 2 | . 2 . Wheel . | . . . Hover . | . . . Flight . | . . . Utility 1 | 1 . . Device . | . . . Storage 1 | 1 . . Processor . | . . . Hackware . | . . . Protection . | . . . Artifact . | . . . Weapon 4 | 2 2 . Energy Gun 2 | 1 1 . Energy Cannon . | . . . Ballistic Gun 2 | 1 1 . Ballistic Cannon . | . . . Launcher . | . . . Special Weapon . | . . . Impact Weapon . | . . . Slashing Weapon . | . . . Piercing Weapon . | . . . Special Melee Weapon . | . . . Unidentified Prototypes . | . . . Parts Lost 7 | . 5 2 Power 2 | . 1 1 Propulsion 2 | . 1 1 Utility . | . . . Weapon 3 | . 3 . Highest Loss Streak 4 | . 4 2 To Critical Strikes . | . . . Average Backups 4 | 2 4 6 Power . | . . . Propulsion 3 | 1 3 6 Utility . | . . . Weapon . | 1 1 . Tool/Special . | . . . Unused Backups 5 | . . 5 Power . | . . . Propulsion 5 | . . 5 Utility . | . . . Weapon . | . . . Tool/Special . | . . . Average Slot Usage (%) 76 | . 79 69 Engine 13 | . 13 13 Treads 11 | . 17 . Leg 15 | . 9 26 Storage 14 | . 14 14 Energy Gun 6 | . 9 . Ballistic Gun 14 | . 14 14 Peak Build Rating 6 | 6 6 5 Average Rating 5 | 4 5 4 On Entrance 3 | . 6 5 Naked Turns . | . . . Heaviest Build 14 | 13 14 12 Greatest Support 40 | 40 40 20 Greatest Overweight (x) 1 | 1 1 1 Average Overweight (x) . | . . . Largest Inventory Capacity 8 | 8 8 8 Average Capacity 7 | 7 8 8 Most Carried 6 | 5 6 6 Average Carried 4 | 2 4 6 Final Capacity 8 | 8 8 8 Final Carried 6 | 4 6 6 Class Distribution -------------------- 100% | Mutant Dominant Class ---------------- Mutant | -10/Materials Mutant | -10/Subcaves Resources | -11 -10 -10 ----------- Run | Yrd Mat Sub Matter Collected 380 | 196 173 11 Remotely . | . . . Salvage Created 218 | . 218 . Parts 12 | . 12 . Haulers Intercepted . | . . . Recyclers Shooed . | . . . Parts Field Recycled . | . . . Retrieved Matter . | . . . Parts Self-Destructed 4 | . . 4 Prevented . | . . . Kills | -11 -10 -10 ------- Run | Yrd Mat Sub Combat Hostiles Destroyed 6 | . 6 . Guns 6 | . 6 . Classes Destroyed 3 | . 3 . Worker 1 | . 1 . Swarmer 3 | . 3 . Grunt 3 | . 3 . Best Kill Streak 2 | . 2 . Combat Bots Only 2 | . 2 . Max Kills in Single Turn 1 | . 1 . Gunslinging . | . . . Exploded . | . . . Melee . | . . . Uniques/NPCs Destroyed . | . . . Combat | -11 -10 -10 -------- Run | Yrd Mat Sub Hostile Shots Fired 135 | . 106 29 Missed 43 | . 31 12 Hits 92 | . 75 17 Projectile 92 | . 75 17 Damage Taken 1134 | . 774 360 Core 251 | . 99 152 Absorbed by Shields . | . . . Core Remaining (%) 100 | 100 . . Volleys Fired 43 | . 41 2 Largest 2 | . 2 1 Hottest 70 | . 70 20 Shots Fired 63 | . 61 2 Gun 63 | . 61 2 Cannon . | . . . Launcher . | . . . Special . | . . . Kinetic 43 | . 41 2 Thermal 10 | . 10 . Explosive . | . . . Electromagnetic 10 | . 10 . Robot Hit Streak 10 | . 10 1 Robot Miss Streak 7 | . 7 3 Penetration Max . | . . . Secondary Targets . | . . . Shots Hit Robots 28 | . 27 1 Core Hits 8 | . 8 . Critical Kills . | . . . Critical Parts Destroyed . | . . . Critical Strikes . | . . . Melee Attacks . | . . . Impact . | . . . Slashing . | . . . Piercing . | . . . Sneak Attacks . | . . . Combat Hostiles . | . . . Follow-up Attacks . | . . . Damage Inflicted 364 | . 354 10 Guns 364 | . 354 10 Cannons . | . . . Explosions . | . . . Melee . | . . . Ramming . | . . . Kinetic 233 | . 223 10 Thermal 62 | . 62 . Explosive . | . . . Electromagnetic 69 | . 69 . Impact . | . . . Slashing . | . . . Piercing . | . . . Highest Corruption . | . . . Average Corruption . | . . . Corruption Purged . | . . . Corruption Blocked . | . . . Overload Shots . | . . . Overflow Damage . | . . . Projectiles . | . . . Explosions . | . . . Melee . | . . . Knockbacks . | . . . Impact . | . . . Kinetic . | . . . Secondary . | . . . Self-Inflicted Damage . | . . . Shots . | . . . Rammed . | . . . Targets Rammed . | . . . Kicked . | . . . Crushed . | . . . Highest Temperature 254 | . 254 . Average Temperature 127 | . 127 . Received Heat Transfer 462 | . 360 102 Effects 2 | . 2 . Energy Bleed 1 | . 1 . Interference 1 | . 1 . Siege Activations . | . . . Martial Activations . | . . . Shielding Activations . | . . . Robots Disrupted . | . . . Combat Hostiles . | . . . Robots Corrupted . | . . . Combat Hostiles . | . . . Parts Fried . | . . . Impact Corruptions . | . . . Robots Melted . | . . . Combat Hostiles . | . . . Parts Melted . | . . . Heat Transferred 185 | . 185 . Parts Sabotaged . | . . . Parts Stolen . | . . . Parts Stripped . | . . . Power Chain Reactions . | . . . Alert | -11 -10 -10 ------- Run | Yrd Mat Sub Maximum Alert Level . | . . . Low Security (%) 100 | 100 100 . Level 1 . | . . . Level 2 . | . . . Level 3 . | . . . Level 4 . | . . . Level 5 . | . . . High Security . | . . . Max Security . | . . . Peak Influence 60 | . 60 . Initial . | . . . Average 11 | . 13 . Influence Increases 168 | . 168 . Destroy 0b10 Robot/C 120 | . 120 . Destroy 0b10 Robot/NC 5 | . 5 . Destroy Leader 20 | . 20 . Successful Hack 8 | . 8 . Lose Combat Pursuer 15 | . 15 . Influence Decreases 168 | . 140 28 Entered New Map 14 | . . 14 Time Decay 94 | . 80 14 Lost Part 30 | . 30 . Purge Threat 30 | . 30 . Squads Dispatched 2 | . 2 . Investigation 2 | . 2 . Extermination . | . . . Reinforcement . | . . . Assault . | . . . Garrison . | . . . Intercept . | . . . Searches Triggered . | . . . Construction Impeded . | . . . Haulers Reinforced . | . . . Active Scanning Responses . | . . . Cargo Convoy Interrupts . | . . . Stealth | -11 -10 -10 --------- Run | Yrd Mat Sub Distress Signals . | . . . Communications Jammed . | . . . Distress Signals . | . . . Times Spotted 15 | . 13 2 Peak Tracking Total 7 | . 7 2 Tactical Retreats 1 | . 1 . Traps | -11 -10 -10 ------- Run | Yrd Mat Sub Traps Triggered 2 | . 2 . Indirectly . | . . . Trap Hack Attempts . | . . . Triggered . | . . . Disarmed . | . . . Reprogrammed . | . . . Reused . | . . . Traps Extracted . | . . . Installed . | . . . Triggered . | . . . Machines | -11 -10 -10 ---------- Run | Yrd Mat Sub Machines Disabled . | . . . Max in Single Turn . | . . . Machines Repaired . | . . . Machines Dismantled . | . . . Machines Sabotaged . | . . . Overloaded Fab Kills . | . . . Hacking | -11 -10 -10 --------- Run | Yrd Mat Sub Machines Accessed 3 | . 3 . Terminals 2 | . 2 . Fabricators . | . . . Repair Stations . | . . . Recycling Units 1 | . 1 . Scanalyzers . | . . . Garrison Access . | . . . Total Hacks 7 | . 7 . Successful 5 | . 5 . Failed 2 | . 2 . Catastrophic . | . . . Database Lockouts . | . . . Manual 6 | . 6 . Terminals 6 | . 6 . Fabricators . | . . . Repair Stations . | . . . Recycling Units 1 | . 1 . Scanalyzers . | . . . Garrison Access . | . . . Terminal Hacks 5 | . 5 . Alert Level 2 | . 2 . Unreport Threat 1 | . 1 . Recall Investigation 1 | . 1 . Zone Layout 1 | . 1 . Fabricator Hacks . | . . . Repair Station Hacks . | . . . Recycling Unit Hacks . | . . . Scanalyzer . | . . . Garrison Access Hacks . | . . . Unauthorized Hacks . | . . . Terminals . | . . . Fabricators . | . . . Repair Stations . | . . . Recycling Units . | . . . Scanalyzers . | . . . Garrison Access . | . . . Data Cores Recovered . | . . . Used . | . . . Hacking Detections 2 | . 2 . Full Trace Events 1 | . 1 . Feedback Events . | . . . Feedback Blocked . | . . . Robot Schematics Acquired . | . . . Robots Built . | . . . Authchips . | . . . Time . | . . . Total Robot Build Rating . | . . . Part Schematics Acquired . | . . . Parts Built . | . . . Authchips . | . . . Time . | . . . Total Part Build Rating . | . . . Parts Repaired . | . . . Time . | . . . Parts Recycled . | . . . Recycled Matter . | . . . Retrieved Matter . | . . . Retrieved Components . | . . . Parts Scanalyzed . | . . . Part Schematics Acquired . | . . . Parts Damaged . | . . . Bothacking | -11 -10 -10 ------------ Run | Yrd Mat Sub Used RIF Installer . | . . . Robots Hacked . | . . . Non-combat . | . . . Combat . | . . . Robot Hacks Applied . | . . . Relay Couplers Released . | . . . Fabnet Peak Effective % . | . . . Robots Rewired . | . . . Allies Hacked . | . . . Hacks Repelled . | . . . Allies | -11 -10 -10 -------- Run | Yrd Mat Sub Total Allies . | . . . Largest Group . | . . . Highest-Rated Group . | . . . Highest-Rated Ally . | . . . Total Orders . | . . . Ally Attacks . | . . . Total Damage . | . . . Kills . | . . . Allies Corrupted . | . . . Allies Melted . | . . . Intel | -11 -10 -10 ------- Run | Yrd Mat Sub Active Infowar (turns) . | . . . Robot Analysis Total . | . . . Derelict Logs Recovered . | . . . Drone Launches . | . . . Drone Recoveries . | . . . Exploration | -11 -10 -10 ------------- Run | Yrd Mat Sub Turns Passed 810 | 115 472 223 Spaces Moved 499 | 71 251 177 Core 20 | 20 . . Treads 201 | 51 150 . Legs 278 | . 101 177 Wheels . | . . . Hover . | . . . Flight . | . . . Fastest Speed 50 | 50 120 120 Average Speed 134 | 130 144 123 Slowest Speed 190 | 160 190 190 Overloaded Moves . | . . . Propulsion Burnouts . | . . . Robots Hopped . | . . . Potential Cave-ins . | . . . Cave-ins Triggered . | . . . Exploration Rate (%) 14 | 5 27 10 Regions Visited 2 Branch Regions 1 Pre-discovered Areas 1 | . . 1 Known Exits Taken . | . . . Unknown Exits Taken 2 | 1 1 . Scrap Searched . | . . . Spaces Dug . | . . . Terrain Destroyed . | . . . Melee . | . . . Projectile . | . . . AOE . | . . . Terrain Rammed . | . . . Walls Destroyed . | . . . Machines Disabled . | . . . Actions | -11 -10 -10 --------- Run | Yrd Mat Sub Total 573 | 91 303 179 Wait 10 | 10 . . Move 497 | 70 250 177 Hop . | . . . Pick Up 11 | 5 6 . Fast Attach 5 | 5 . . Attach 6 | 1 5 . Detach 1 | . 1 . Swap . | . . . Drop . | . . . Fire 43 | . 41 2 Melee . | . . . Ram . | . . . Kick . | . . . Crush . | . . . Escape Stasis . | . . . Rewire . | . . . Trap . | . . . Miscellaneous . | . . . Route ------- -11/Scrapyard -10/Materials (discovered 2 exits: [*Mat] / [*Sub]) -10/Subcaves (discovered 1 exit: [*Mat]) History --------- Turn | Location | Event 14 | -11/Scrapyard | Discovered new exit (range 15) 116 | -11/Scrapyard | Entered Materials 307 | -10/Materials | Build established: Mutant 413 | -10/Materials | Lost 4 parts (1p1n2w) 542 | -10/Materials | Discovered new exit (range 16) 548 | -10/Materials | Discovered new exit (range 9) 588 | -10/Materials | Entered Subcaves 589 | -10/Subcaves | Approached by a straggling Scientist 590 | -10/Subcaves | Discovered new exit (range 15) 614 | -10/Subcaves | Learned location of Zion (-7) 614 | -10/Subcaves | Met a Zionite searching for "candidates" 784 | -10/Subcaves | Core integrity fell below 50% 800 | -10/Subcaves | Core integrity fell below 20% 811 | -10/Subcaves | Destroyed by 0X-JLC(R) with Subdweller Laser Last Messages --------------- T8-DVE(z): "Hey you! It's really dangerous down here, I feel that you could die at any moment. For your health and safety might I suggest a trip to Zion?" World map updated: -7/Zion. OZ-Q15(c): "I think it's somewhere northwest of here" 4K-5D2(u) builds Twisted Machinery. Hold RMB on a map location to designate it as a relative view centerpoint. This is especially useful while zoomed, in order to see further in your current direction of exploration. Try it now. OZ-Q15(c): "I think it's somewhere northwest of here" Acquired 11 matter. OZ-Q15(c): "I think it's somewhere northwest of here" Aluminum Leg destroyed. Ion Engine destroyed. Map ----- +----------------------------------------------------+ | ##??????????????????????????????????????? | | ##???????????????????????????????????????? | | ##???????#""?????????????????????????????? | | ##????##" "?????????????????????????????? | | ######"" ??????????????????????????????? | | # ## " #???????????????????????????????? | | ## ## #???????????????????????????????? | | ?# ### #???????????????????????????????? | | ?# ### #???????#???????????????????????? | | ## ## ####??#""""?????????????????????? | | # ###""""??????????????????????? | | """"#??????????????????????? | | #### """##??????????????????????? | | ###??## ##???????????????????????? | | ??????# R##???????????????????????? | | ??????## ###?????????????????????? | | #???????# ###???????????????????? | | ??????#### R #???????????????????? | | ???#### " #???????????????????? | | ??## """" " ##???????????????????? | | ?## #"""" ## ## #????????????????????? | | ?# #### ##### ##???????????????????? | | ## ## #??# ####????????????????? | | "" "#??### ## ##???????????????? | | "" ""#??#?## ##??????????????? | | #####"" "## ##?## @ #??????????????? | | ###???##" ##?## #??????????????? | | ?????### " #??# ###??????????????? | | ?????# ## #?##### #????????????????? | | ?????# ##?# #????## ##????????????????? | | ?????# #???# #?????###?????????????????? | | ?????## ##???? ##?????????????????????????? | | ??????## #?????? ##??????????????????????????? | | ???????# "???????????????????????????????????? | | ???????# "???????????????????????????????????? | | ???????"""???????????????????????????????????? | | ??????? "???????????????????????????????????? | | ??????? ##??????????????????????????????????? | | ??????? ##???????????????????????????????????? | | ???????"?????????????????????????????????????? | | ??????? ?????????????????????????????????????? | | ??????? ?????????????????????????????????????? | | ?????????????????????????????????????????????? | | ?????????????????????????????????????????????? | | ?????????????????????????????????????????????? | | ?????????????????????????????????????????????? | | ?????????????????????????????????????????????? | | ?????????????????????????????????????????????? | | ?????????????????????????????????????????????? | | ?????????????????????????????????????????????? | +----------------------------------------------------+ Best States ------------- Heat Dissipation 25 Energy Generation 10 Energy Capacity 250 Matter Stores 300 Matter Capacity 300 Sight Range 16 Terrain Scan Density 10 Evasion (%) 55 Recoil Reduction 2 Item Schematics ----------------- None Robot Schematics ------------------ None Fabricated ------------ Nothing Repaired ---------- Nothing Alien Tech Used ----------------- None Achievements -------------- None Challenges ------------ None Game ------ Seed ProjectionCompactSword Manual? 0 Play Time 00:14:33 Cumulative 2.7 hours Start 2025.06.05 @ 19:05:51 End 2025.06.05 @ 19:21:00 Sessions 1 Manual Loads 0 Difficulty Rogue Special Mode None Game No. 6 Rogue 6 Adventurer 0 Explorer 0 Win Type - Total 0 Types 0/0/0/0/0/0/0/0/0/0 Lore% 0 Gallery% 7 Achievement% 8 Wizard Run 0 Options --------- Layout 1 ASCII 0 Keyboard 0 Movement Arrows Keybinds 0 Fullscreen 0 Font 20/SmallcapsGlow Map View 25x17 Zoom Use 94% Tactical HUD 0 Map Filters NONE Filters NONE Steam 1 RUN: 2d6c0ebb-1800-45c8-ac9c-a5fb9258df77